[Event "WSTCC-65 2024"]
[Site "Krakow"]
[Date "2024.07.03"]
[Round "2.18"]
[White "Bhopal, Raj"]
[Black "Marks, Zofia"]
[Result "1-0"]
[ECO "A05"]
[WhiteElo "1991"]
[BlackElo "1906"]
[Annotator "NA RC"]
[PlyCount "91"]
[EventDate "2024.07.01"]
[EventType "team-tourn"]
[EventCountry "POL"]
[SourceTitle "playchess.com"]
[Source "ChessBase"]
[SourceQuality "1"]
[TimeControl "40/5400+30:1800+30"]

1. Nf3 {[%emt 0:00:09]} Nf6 {[%emt 0:00:41]} 2. g3 {[%emt 0:00:14]} g6 {[%emt 0:00:14]} 3. Bg2 {[%emt 0:00:06]} Bg7 {[%emt 0:00:03]} 4. O-O {[%emt 0:01:16]} O-O {[%emt 0:00:19]} 5. c4 {[%emt 0:00:14]} c5 {[%emt 0:01:27]} 6. Nc3 {[%emt 0:00:26]} d6 {[%emt 0:03:18]} 7. d3 {[%emt 0:00:33]} Na6 {[%emt 0:01:27]} 8. Rb1 {[%emt 0:01:31]} Rb8 {[%emt 0:00:07]} 9. Nb5 {[%emt 0:05:16]} Bd7 {[%emt 0:02:13]} 10. a4 {[%emt 0:07:35]} Bxb5 {[%emt 0:08:14]} 11. axb5 {[%emt 0:00:50]} Nb4 {[%emt 0:03:27]} 12. Bd2 {[%emt 0:06:04]} a5 {[%emt 0:01:18]} 13. Ra1 {[%emt 0:04:49]} b6 {[%emt 0:01:56]} 14. Bc3 {[%emt 0:03:11]} Qc7 {[%emt 0:12:04]} 15. Qd2 {[%emt 0:04:27]} Rbd8 {[%emt 0:00:46]} 16. Rfc1 {[%emt 0:08:52]} Rfe8 {[%emt 0:05:45]} 17. e3 {[%emt 0:09:09]} e5 {[%emt 0:05:05]} 18. Ng5 {[%emt 0:03:37]} h6 {[%emt 0:02:41]} 19. Ne4 {[%emt 0:01:37]} Nh7 {[%emt 0:03:56]} 20. Bxb4 {[%emt 0:05:07]} cxb4 {[%emt 0:04:27]} 21. g4 {[%emt 0:01:35]} Qe7 {[%emt 0:10:37]} 22. Qe2 {[%emt 0:02:25]} Kh8 {[%emt 0:00:52]} 23. Qf3 {[%emt 0:01:52]} Rf8 {[%emt 0:00:57]} 24. Rc2 {[%emt 0:05:23]} f5 {[%emt 0:04:01]} 25. gxf5 {[%emt 0:02:09]} gxf5 {[%emt 0:00:26]} 26. Ng3 {[%emt 0:02:05]} Ng5 {[%emt 0:02:14]} 27. Qd5 {[%emt 0:03:37]} Qf7 {[%emt 0:03:26]} 28. Qxf7 {[%emt 0:00:50]} Rxf7 {[%emt 0:00:12]} 29. h4 {[%emt 0:02:12]} f4 {[%emt 0:03:06]} 30. hxg5 {[%emt 0:04:09]} fxg3 {[%emt 0:00:03]} 31. fxg3 {[%emt 0:00:31]} hxg5 {[%emt 0:01:37]} 32. Bd5 {[%emt 0:00:43]} Rf6 {[%emt 0:00:44]} 33. Rh2+ {[%emt 0:01:20]} Bh6 {[%emt 0:01:54]} 34. Rf1 {[%emt 0:01:21]} Rxf1+ {[%emt 0:01:42]} 35. Kxf1 {[%emt 0:00:11]} Kg7 {[%emt 0:01:09]} 36. b3 {[%emt 0:00:46]} Rf8+ {[%emt 0:02:11]} 37. Ke2 {[%emt 0:01:05]} Rf6 {[%emt 0:01:22]} 38. g4 {[%emt 0:01:57]} Rf8 {[%emt 0:03:09]} 39. Be4 {[%emt 0:03:17]} Rf6 {[%emt 0:01:17]} 40. Bf5 {[%emt 0:01:37]} Rf8 {[%emt 0:01:27]} 41. Kf3 {[%emt 0:31:10]} Rf6 {[%emt 0:09:38]} 42. Ke4 {[%emt 0:00:00]} Kf7 {[%emt 0:13:44]} 43. Kd5 {[%emt 0:00:00]} Bg7 {[%emt 0:04:03]} 44. Kc6 {[%emt 0:00:00]} e4 {[%emt 0:03:02]} 45. d4 {[%emt 0:00:00]} a4 {[%emt 0:06:05]} 46. bxa4 {[%emt 0:00:00]} 1-0

[Event "WSTCC-65 2024"]
[Site "Krakow"]
[Date "2024.07.03"]
[Round "2.19"]
[White "Gasik, Jadwiga"]
[Black "Scrimgour, Alan"]
[Result "0-1"]
[ECO "B22"]
[WhiteElo "1780"]
[BlackElo "1979"]
[Annotator "NA RC"]
[PlyCount "109"]
[EventDate "2024.07.01"]
[EventType "team-tourn"]
[EventCountry "POL"]
[SourceTitle "playchess.com"]
[Source "ChessBase"]
[SourceQuality "1"]
[TimeControl "40/5400+30:1800+30"]

1. e4 {[%emt 0:00:22]} c5 {[%emt 0:00:11]} 2. c3 {[%emt 0:00:09]} Nf6 {[%emt 0:00:07]} 3. e5 {[%emt 0:00:13]} Nd5 {[%emt 0:00:05]} 4. d4 {[%emt 0:00:06]} cxd4 {[%emt 0:00:11]} 5. cxd4 {[%emt 0:00:03]} d6 {[%emt 0:00:15]} 6. Nf3 {[%emt 0:00:39]} e6 {[%emt 0:01:25]} 7. Be2 {[%emt 0:01:53]} Nc6 {[%emt 0:00:32]} 8. O-O {[%emt 0:00:18]} Be7 {[%emt 0:00:46]} 9. Nbd2 {[%emt 0:03:54]} O-O {[%emt 0:10:35]} 10. Ne4 {[%emt 0:01:28]} h6 {[%emt 0:03:01]} 11. a3 {[%emt 0:04:49]} dxe5 {[%emt 0:08:59]} 12. dxe5 {[%emt 0:00:18]} Qc7 {[%emt 0:00:36]} 13. Bd3 {[%emt 0:02:13]} Nxe5 {[%emt 0:05:31]} 14. Nxe5 {[%emt 0:00:23]} Qxe5 {[%emt 0:00:07]} 15. Qg4 {[%emt 0:00:10]} f5 {[%emt 0:03:22]} 16. Qg3 {[%emt 0:00:42]} Qxg3 {[%emt 0:03:09]} 17. Nxg3 {[%emt 0:00:11]} Bd7 {[%emt 0:04:26]} 18. Re1 {[%emt 0:05:02]} Kf7 {[%emt 0:02:27]} 19. Bc4 {[%emt 0:01:00]} Bc6 {[%emt 0:02:31]} 20. Bd2 {[%emt 0:02:54]} Bf6 {[%emt 0:04:47]} 21. Rab1 {[%emt 0:08:39]} Rfe8 {[%emt 0:02:07]} 22. Re2 {[%emt 0:02:54]} Nb6 {[%emt 0:07:21]} 23. Ba2 {[%emt 0:01:45]} Bd5 {[%emt 0:00:35]} 24. b3 {[%emt 0:00:25]} Rac8 {[%emt 0:06:51]} 25. Bb4 {[%emt 0:01:20]} g5 {[%emt 0:01:47]} 26. h3 {[%emt 0:01:00]} Bc3 {[%emt 0:04:17]} 27. Bxc3 {[%emt 0:01:10]} Rxc3 {[%emt 0:00:07]} 28. Rbe1 {[%emt 0:02:24]} Rec8 {[%emt 0:04:27]} 29. f3 {[%emt 0:07:54]} R8c6 {[%emt 0:03:23]} 30. Rb2 {[%emt 0:09:27]} Nd7 {[%emt 0:07:05]} 31. Ne2 {[%emt 0:08:19]} Rc2 {[%emt 0:03:33]} 32. Rxc2 {[%emt 0:00:29]} Rxc2 {[%emt 0:00:05]} 33. Bb1 {[%emt 0:00:08]} Rd2 {[%emt 0:01:16]} 34. b4 {[%emt 0:00:31]} Ba2 {[%emt 0:03:05]} 35. Nc3 {[%emt 0:01:27]} Bxb1 {[%emt 0:00:26]} 36. Nxb1 {[%emt 0:00:10]} Ra2 {[%emt 0:00:51]} 37. Rc1 {[%emt 0:03:29]} Ra1 {[%emt 0:02:02]} 38. Kf2 {[%emt 0:01:04]} Ke7 {[%emt 0:00:20]} 39. Ke3 {[%emt 0:00:57]} Kd6 {[%emt 0:03:50]} 40. Rd1+ {[%emt 0:03:41]} Kc7 {[%emt 0:02:17]} 41. Kd4 {[%emt 0:33:07]} Ra2 {[%emt 0:03:06]} 42. Rd2 {[%emt 0:00:00]} Rxd2+ {[%emt 0:01:04]} 43. Nxd2 {[%emt 0:00:00]} b5 {[%emt 0:00:06]} 44. Nb3 {[%emt 0:00:00]} Kd6 {[%emt 0:00:23]} 45. Na5 {[%emt 0:00:00]} e5+ {[%emt 0:00:29]} 46. Kd3 {[%emt 0:00:00]} Kd5 {[%emt 0:02:44]} 47. Ke3 {[%emt 0:00:00]} Nb6 {[%emt 0:03:48]} 48. Kd3 {[%emt 0:00:00]} f4 {[%emt 0:05:47]} 49. Kc3 {[%emt 0:00:00]} e4 {[%emt 0:01:01]} 50. fxe4+ {[%emt 0:00:00]} Kxe4 {[%emt 0:00:07]} 51. Nc6 {[%emt 0:00:00]} a6 {[%emt 0:01:01]} 52. Nb8 {[%emt 0:00:00]} Ke3 {[%emt 0:05:15]} 53. Nxa6 {[%emt 0:00:00]} Nd5+ {[%emt 0:00:42]} 54. Kc2 {[%emt 0:00:00]} Kf2 55. Kd3 0-1

[Event "WSTCC-65 2024"]
[Site "Krakow"]
[Date "2024.07.03"]
[Round "2.20"]
[White "Marks, Ian A"]
[Black "Bartczak, Hanna"]
[Result "1/2-1/2"]
[ECO "E05"]
[WhiteElo "1932"]
[BlackElo "1639"]
[Annotator "NA RC"]
[PlyCount "94"]
[EventDate "2024.07.01"]
[EventType "team-tourn"]
[EventCountry "POL"]
[SourceTitle "playchess.com"]
[Source "ChessBase"]
[SourceQuality "1"]
[TimeControl "40/5400+30:1800+30"]

1. d4 {[%emt 0:00:11]} d5 {[%emt 0:00:17]} 2. c4 {[%emt 0:00:18]} e6 {[%emt 0:00:46]} 3. Nf3 {[%emt 0:00:21]} Nf6 {[%emt 0:00:30]} 4. g3 {[%emt 0:00:37]} dxc4 {[%emt 0:05:56]} 5. Bg2 {[%emt 0:00:34]} Be7 {[%emt 0:04:09]} 6. O-O {[%emt 0:00:11]} O-O {[%emt 0:09:16]} 7. Qa4 Na6 8. Qxc4 {[%emt 0:02:35]} c5 {[%emt 0:02:20]} 9. Nc3 {[%emt 0:05:18]} cxd4 {[%emt 0:14:38]} 10. Nxd4 {[%emt 0:02:07]} Qc7 {[%emt 0:00:54]} 11. Qxc7 {[%emt 0:09:58]} Nxc7 {[%emt 0:00:09]} 12. Bf4 {[%emt 0:01:37]} Ncd5 {[%emt 0:01:08]} 13. Nxd5 {[%emt 0:00:59]} Nxd5 {[%emt 0:00:11]} 14. Rac1 {[%emt 0:11:14]} Nxf4 {[%emt 0:02:52]} 15. gxf4 {[%emt 0:00:04]} Rb8 {[%emt 0:03:37]} 16. Rfd1 {[%emt 0:06:29]} Bf6 {[%emt 0:02:15]} 17. b3 {[%emt 0:01:27]} Rd8 {[%emt 0:01:40]} 18. Nf3 {[%emt 0:01:13]} Rxd1+ {[%emt 0:05:58]} 19. Rxd1 {[%emt 0:00:02]} b6 {[%emt 0:01:09]} 20. e4 {[%emt 0:07:26]} Ba6 {[%emt 0:03:43]} 21. Ne5 {[%emt 0:10:18]} Bxe5 {[%emt 0:02:40]} 22. fxe5 {[%emt 0:00:04]} Kf8 {[%emt 0:01:44]} 23. Bf1 {[%emt 0:01:21]} Bxf1 {[%emt 0:01:02]} 24. Kxf1 {[%emt 0:01:32]} Ke7 {[%emt 0:00:11]} 25. Ke2 {[%emt 0:06:36]} Rc8 {[%emt 0:00:19]} 26. h4 {[%emt 0:04:49]} Rc2+ {[%emt 0:00:37]} 27. Rd2 {[%emt 0:00:47]} Rxd2+ {[%emt 0:01:52]} 28. Kxd2 {[%emt 0:00:02]} Kd7 {[%emt 0:01:01]} 29. Kc3 {[%emt 0:01:12]} Kc6 {[%emt 0:00:15]} 30. Kc4 {[%emt 0:02:26]} b5+ {[%emt 0:04:44]} 31. Kd4 {[%emt 0:00:58]} b4 {[%emt 0:01:41]} 32. Kc4 {[%emt 0:01:17]} a5 {[%emt 0:00:09]} 33. Kd4 {[%emt 0:01:41]} g6 {[%emt 0:00:25]} 34. f3 {[%emt 0:05:13]} h6 {[%emt 0:03:13]} 35. f4 {[%emt 0:04:10]} Kb5 {[%emt 0:03:07]} 36. Kd3 {[%emt 0:00:28]} Kc5 {[%emt 0:01:08]} 37. Ke3 {[%emt 0:00:19]} Kb5 {[%emt 0:00:25]} 38. Kd4 {[%emt 0:00:22]} Kb6 {[%emt 0:01:19]} 39. Kc4 {[%emt 0:00:15]} Kc6 {[%emt 0:00:09]} 40. Kd4 {[%emt 0:00:23]} Kb5 {[%emt 0:00:15]} 41. Kd3 {[%emt 0:30:33]} Kc5 {[%emt 0:30:20]} 42. Ke3 {[%emt 0:00:36]} Kb5 {[%emt 0:00:21]} 43. Kd4 {[%emt 0:00:21]} Kb6 {[%emt 0:00:20]} 44. Kc4 {[%emt 0:00:36]} Kc6 {[%emt 0:00:08]} 45. Kd4 {[%emt 0:00:13]} Kb5 {[%emt 0:00:15]} 46. Kd3 {[%emt 0:00:28]} Kb6 {[%emt 0:00:13]} 47. Kc4 {[%emt 0:00:34]} Kc6 {[%emt 0:00:10]} 1/2-1/2

[Event "WSTCC-65 2024"]
[Site "Krakow"]
[Date "2024.07.03"]
[Round "2.20"]
[White "Thoele, Wolfgang"]
[Black "Shaughnessy, Elizabeth"]
[Result "1/2-1/2"]
[ECO "B08"]
[WhiteElo "1890"]
[BlackElo "1642"]
[Annotator "NA RC"]
[PlyCount "32"]
[EventDate "2024.07.01"]
[EventType "team-tourn"]
[EventCountry "POL"]
[SourceTitle "playchess.com"]
[Source "ChessBase"]
[SourceQuality "1"]
[TimeControl "40/5400+30:1800+30"]

1. e4 {[%emt 0:00:06]} d6 {[%emt 0:00:03]} 2. d4 {[%emt 0:00:10]} Nf6 {[%emt 0:00:05]} 3. Nc3 {[%emt 0:00:12]} g6 {[%emt 0:00:06]} 4. Nf3 {[%emt 0:00:29]} Bg7 {[%emt 0:00:08]} 5. Be2 {[%emt 0:01:01]} O-O {[%emt 0:00:11]} 6. O-O {[%emt 0:00:07]} Nbd7 {[%emt 0:01:29]} 7. h3 {[%emt 0:01:08]} c5 {[%emt 0:00:28]} 8. Be3 {[%emt 0:01:45]} cxd4 {[%emt 0:00:28]} 9. Bxd4 {[%emt 0:03:01]} a6 10. Nh2 {[%emt 0:04:57]} b5 {[%emt 0:02:36]} 11. a3 {[%emt 0:00:27]} Bb7 {[%emt 0:00:57]} 12. Bf3 {[%emt 0:20:36]} Rc8 {[%emt 0:16:55]} 13. Ng4 {[%emt 0:07:21]} h5 {[%emt 0:13:41]} 14. Nxf6+ {[%emt 0:01:39]} Nxf6 {[%emt 0:00:13]} 15. e5 {[%emt 0:02:45]} Bxf3 {[%emt 0:00:32]} 16. Qxf3 {[%emt 0:00:09]} Nd7 {[%emt 0:05:25]} 1/2-1/2

[Event "WSTCC-65 2024"]
[Site "Krakow"]
[Date "2024.07.03"]
[Round "2.21"]
[White "Thuesen, Mogens"]
[Black "Vilerte, Tamara"]
[Result "1-0"]
[ECO "A61"]
[WhiteElo "2158"]
[BlackElo "1971"]
[Annotator "RC"]
[PlyCount "75"]
[EventDate "2024.07.01"]
[EventType "team-tourn"]
[EventCountry "POL"]
[SourceTitle "playchess.com"]
[Source "ChessBase"]
[SourceQuality "1"]
[TimeControl "40/5400+30:1800+30"]

1. d4 {[%emt 0:00:14]} Nf6 {[%emt 0:00:16]} 2. c4 {[%emt 0:00:40]} c5 {[%emt 0:01:37]} 3. d5 {[%emt 0:00:35]} e6 {[%emt 0:01:19]} 4. Nc3 {[%emt 0:00:08]} exd5 {[%emt 0:00:43]} 5. cxd5 {[%emt 0:00:07]} d6 {[%emt 0:00:04]} 6. Nf3 {[%emt 0:00:29]} g6 {[%emt 0:01:13]} 7. Bf4 {[%emt 0:00:29]} a6 {[%emt 0:02:06]} 8. a4 {[%emt 0:00:25]} Bg7 {[%emt 0:01:14]} 9. e4 {[%emt 0:01:27]} O-O {[%emt 0:04:17]} 10. Be2 {[%emt 0:00:53]} Nh5 {[%emt 0:14:07]} 11. Bg5 {[%emt 0:08:19]} Qb6 {[%emt 0:05:14]} 12. Qc2 {[%emt 0:13:07]} h6 {[%emt 0:10:02]} 13. Be3 {[%emt 0:06:48]} Bg4 {[%emt 0:08:56]} 14. h3 {[%emt 0:02:01]} Bxf3 {[%emt 0:00:16]} 15. Bxf3 {[%emt 0:00:07]} Nf6 {[%emt 0:00:03]} 16. O-O {[%emt 0:00:26]} Qc7 {[%emt 0:01:56]} 17. Be2 {[%emt 0:14:39]} Nbd7 {[%emt 0:03:36]} 18. f4 {[%emt 0:01:08]} b6 {[%emt 0:02:53]} 19. Qd2 {[%emt 0:11:19]} Ne8 {[%emt 0:07:11]} 20. Rad1 {[%emt 0:02:27]} Ra7 {[%emt 0:06:59]} 21. Bc4 {[%emt 0:01:55]} Qb8 {[%emt 0:03:01]} 22. Qe2 {[%emt 0:06:27]} Qc8 {[%emt 0:00:48]} 23. e5 {[%emt 0:07:46]} dxe5 {[%emt 0:01:36]} 24. d6 {[%emt 0:00:24]} exf4 {[%emt 0:03:18]} 25. Nd5 {[%emt 0:00:18]} Kh7 {[%emt 0:04:04]} 26. Ne7 {[%emt 0:00:17]} Qb8 {[%emt 0:02:55]} 27. Bxf4 {[%emt 0:01:15]} Nef6 {[%emt 0:02:34]} 28. Nc6 {[%emt 0:01:20]} Qb7 {[%emt 0:01:05]} 29. Nxa7 {[%emt 0:00:18]} Qxa7 {[%emt 0:01:23]} 30. Bxa6 {[%emt 0:01:28]} Re8 {[%emt 0:01:47]} 31. Qd3 {[%emt 0:01:01]} Ne4 {[%emt 0:02:14]} 32. Bb5 {[%emt 0:04:11]} f5 {[%emt 0:01:51]} 33. Qb3 {[%emt 0:02:46]} Rf8 {[%emt 0:02:57]} 34. Qe6 {[%emt 0:01:32]} Nef6 {[%emt 0:00:47]} 35. Rfe1 {[%emt 0:01:37]} Rd8 {[%emt 0:01:31]} 36. Qc4 {[%emt 0:05:12]} Ng8 {[%emt 0:00:39]} 37. Qf7 {[%emt 0:00:38]} Ngf6 {[%emt 0:01:05]} 38. Re7 1-0

[Event "WSTCC-65 2024"]
[Site "Krakow"]
[Date "2024.07.03"]
[Round "2.21"]
[White "Carvalho, Herbert Abreu"]
[Black "McGill, Derek"]
[Result "1-0"]
[ECO "D31"]
[WhiteElo "2123"]
[BlackElo "1827"]
[Annotator "NA RC"]
[PlyCount "87"]
[EventDate "2024.07.01"]
[EventType "team-tourn"]
[EventCountry "POL"]
[SourceTitle "playchess.com"]
[Source "ChessBase"]
[SourceQuality "1"]
[TimeControl "40/5400+30:1800+30"]

1. d4 {[%emt 0:02:12]} d5 {[%emt 0:00:06]} 2. c4 {[%emt 0:00:19]} c6 {[%emt 0:01:09]} 3. Nc3 {[%emt 0:00:36]} e6 {[%emt 0:00:16]} 4. Nf3 {[%emt 0:01:04]} dxc4 {[%emt 0:00:48]} 5. a4 {[%emt 0:00:45]} Bb4 {[%emt 0:00:23]} 6. e4 {[%emt 0:00:19]} b5 {[%emt 0:00:25]} 7. Bd2 {[%emt 0:00:57]} a5 {[%emt 0:03:15]} 8. axb5 {[%emt 0:00:41]} Bxc3 {[%emt 0:00:12]} 9. Bxc3 {[%emt 0:00:44]} cxb5 {[%emt 0:00:05]} 10. b3 {[%emt 0:01:42]} Bb7 {[%emt 0:00:27]} 11. d5 {[%emt 0:01:34]} Nf6 {[%emt 0:02:32]} 12. bxc4 {[%emt 0:01:36]} b4 {[%emt 0:06:14]} 13. Bxf6 {[%emt 0:03:35]} gxf6 {[%emt 0:00:18]} 14. Nd4 {[%emt 0:02:53]} Qb6 {[%emt 0:20:44]} 15. Be2 {[%emt 0:07:15]} Nd7 {[%emt 0:01:54]} 16. Bh5 {[%emt 0:14:20]} Ke7 {[%emt 0:03:08]} 17. Bxf7 {[%emt 0:03:39]} e5 {[%emt 0:07:56]} 18. Nf5+ {[%emt 0:00:52]} Kxf7 {[%emt 0:03:16]} 19. Qh5+ {[%emt 0:00:20]} Kf8 {[%emt 0:03:51]} 20. Qh6+ {[%emt 0:00:09]} Ke8 {[%emt 0:01:53]} 21. Qg7 {[%emt 0:00:17]} Kd8 {[%emt 0:08:13]} 22. Qxh8+ {[%emt 0:00:26]} Kc7 {[%emt 0:00:23]} 23. d6+ {[%emt 0:01:18]} Kc6 {[%emt 0:11:16]} 24. Qxh7 {[%emt 0:02:32]} b3 {[%emt 0:04:16]} 25. O-O {[%emt 0:04:03]} Qd8 {[%emt 0:07:47]} 26. Qh3 {[%emt 0:10:21]} a4 {[%emt 0:00:32]} 27. Rfd1 {[%emt 0:01:54]} Nc5 {[%emt 0:03:54]} 28. Ne7+ {[%emt 0:02:48]} Kb6 {[%emt 0:00:19]} 29. Qc3 {[%emt 0:00:54]} Ra5 {[%emt 0:02:57]} 30. Qb4+ {[%emt 0:06:33]} Ka6 {[%emt 0:00:21]} 31. d7 {[%emt 0:04:43]} Bxe4 {[%emt 0:01:40]} 32. Rd6+ {[%emt 0:00:37]} Ka7 {[%emt 0:00:12]} 33. Nc8+ {[%emt 0:00:24]} Ka8 {[%emt 0:00:26]} 34. Nb6+ {[%emt 0:00:42]} Kb7 {[%emt 0:02:32]} 35. Nc8+ {[%emt 0:05:11]} Ka8 {[%emt 0:00:31]} 36. Rb6 {[%emt 0:00:54]} Nb7 {[%emt 0:01:16]} 37. Rxa4 {[%emt 0:03:23]} Rxa4 {[%emt 0:00:31]} 38. Qxa4+ {[%emt 0:00:08]} Kb8 {[%emt 0:00:11]} 39. Rxb3 {[%emt 0:00:26]} Kc7 {[%emt 0:01:09]} 40. Nb6 {[%emt 0:05:41]} Bc6 {[%emt 0:01:58]} 41. Na8+ {[%emt 0:32:54]} Kd6 {[%emt 0:06:16]} 42. Rd3+ {[%emt 0:00:00]} Ke7 {[%emt 0:02:15]} 43. Qxc6 {[%emt 0:00:00]} Qxa8 {[%emt 0:00:20]} 44. d8=Q+ {[%emt 0:00:00]} 1-0

[Event "WSTCC-65 2024"]
[Site "Krakow"]
[Date "2024.07.03"]
[Round "2.22"]
[White "Goldmane, Astra"]
[Black "Holst, Per"]
[Result "1/2-1/2"]
[ECO "C06"]
[WhiteElo "1989"]
[BlackElo "2073"]
[Annotator "NA RC"]
[PlyCount "32"]
[EventDate "2024.07.01"]
[EventType "team-tourn"]
[EventCountry "POL"]
[SourceTitle "playchess.com"]
[Source "ChessBase"]
[SourceQuality "1"]
[TimeControl "40/5400+30:1800+30"]

1. e4 {[%emt 0:00:03]} e6 {[%emt 0:02:05]} 2. d4 {[%emt 0:00:15]} d5 {[%emt 0:00:09]} 3. Nd2 {[%emt 0:00:30]} Nf6 {[%emt 0:00:27]} 4. e5 {[%emt 0:00:11]} Nfd7 {[%emt 0:00:09]} 5. Bd3 {[%emt 0:00:23]} c5 {[%emt 0:00:08]} 6. c3 {[%emt 0:00:09]} Nc6 {[%emt 0:00:07]} 7. Ne2 {[%emt 0:00:16]} cxd4 {[%emt 0:00:11]} 8. cxd4 {[%emt 0:00:05]} f6 {[%emt 0:00:07]} 9. exf6 {[%emt 0:00:14]} Nxf6 {[%emt 0:00:12]} 10. O-O {[%emt 0:00:27]} Bd6 {[%emt 0:00:08]} 11. Nf3 {[%emt 0:00:26]} Qc7 {[%emt 0:00:11]} 12. Bg5 {[%emt 0:00:39]} O-O {[%emt 0:00:12]} 13. Rc1 {[%emt 0:00:59]} Bd7 {[%emt 0:03:18]} 14. Ng3 {[%emt 0:07:32]} Be8 {[%emt 0:08:53]} 15. Re1 {[%emt 0:06:34]} h6 {[%emt 0:06:07]} 16. Bd2 {[%emt 0:17:22]} Qf7 {[%emt 0:22:12]} 1/2-1/2

[Event "WSTCC-65 2024"]
[Site "Krakow"]
[Date "2024.07.03"]
[Round "2.22"]
[White "Lohan, Martin"]
[Black "Barreto, Ignacio C. de Barros"]
[Result "0-1"]
[ECO "A04"]
[WhiteElo "1826"]
[BlackElo "2059"]
[Annotator "NA RC"]
[PlyCount "66"]
[EventDate "2024.07.01"]
[EventType "team-tourn"]
[EventCountry "POL"]
[SourceTitle "playchess.com"]
[Source "ChessBase"]
[SourceQuality "1"]
[TimeControl "40/5400+30:1800+30"]

1. Nf3 {[%emt 0:00:11]} g6 {[%emt 0:00:29]} 2. g3 {[%emt 0:00:08]} Bg7 {[%emt 0:00:16]} 3. Bg2 {[%emt 0:00:29]} e5 {[%emt 0:00:30]} 4. d3 {[%emt 0:00:09]} Ne7 {[%emt 0:00:30]} 5. O-O {[%emt 0:01:18]} O-O {[%emt 0:00:22]} 6. Nbd2 {[%emt 0:01:33]} c5 {[%emt 0:02:54]} 7. e4 {[%emt 0:02:55]} Nbc6 {[%emt 0:00:23]} 8. a4 {[%emt 0:02:58]} d6 {[%emt 0:02:12]} 9. Nc4 {[%emt 0:01:25]} h6 {[%emt 0:04:33]} 10. c3 {[%emt 0:13:45]} Be6 {[%emt 0:01:21]} 11. Be3 {[%emt 0:06:20]} f5 {[%emt 0:06:02]} 12. Qe2 {[%emt 0:12:58]} f4 {[%emt 0:14:35]} 13. Bd2 {[%emt 0:08:13]} g5 {[%emt 0:05:50]} 14. Ne1 {[%emt 0:07:07]} Qd7 {[%emt 0:08:00]} 15. f3 {[%emt 0:02:35]} h5 {[%emt 0:03:19]} 16. Qf2 {[%emt 0:10:35]} Ng6 {[%emt 0:02:10]} 17. Bh1 {[%emt 0:04:39]} Rf7 {[%emt 0:06:12]} 18. h4 {[%emt 0:05:14]} g4 {[%emt 0:13:30]} 19. fxg4 {[%emt 0:02:18]} fxg3 {[%emt 0:05:51]} 20. Qxg3 {[%emt 0:01:40]} Rxf1+ {[%emt 0:00:21]} 21. Kxf1 {[%emt 0:00:12]} Rf8+ {[%emt 0:00:53]} 22. Ke2 {[%emt 0:01:08]} hxg4 {[%emt 0:10:03]} 23. Bg5 {[%emt 0:05:18]} Bf6 {[%emt 0:02:14]} 24. Nc2 {[%emt 0:02:46]} Bxg5 {[%emt 0:01:00]} 25. hxg5 {[%emt 0:00:11]} Qe7 {[%emt 0:01:59]} 26. N2e3 {[%emt 0:00:59]} Nf4+ {[%emt 0:01:01]} 27. Kd2 {[%emt 0:00:12]} Qxg5 {[%emt 0:00:45]} 28. Nxd6 {[%emt 0:00:14]} Nh5 {[%emt 0:01:03]} 29. Qg1 {[%emt 0:01:49]} Nd4 {[%emt 0:02:38]} 30. Rf1 {[%emt 0:01:06]} Nb3+ {[%emt 0:00:56]} 31. Ke1 {[%emt 0:03:15]} Rxf1+ {[%emt 0:01:41]} 32. Nxf1 {[%emt 0:00:15]} Qc1+ {[%emt 0:00:22]} 33. Ke2 {[%emt 0:01:19]} Nf4+ {[%emt 0:00:34]} 0-1

[Event "WSTCC-65 2024"]
[Site "Krakow"]
[Date "2024.07.03"]
[Round "2.23"]
[White "Sonderstrup, Bjarne"]
[Black "Ungure, Liga"]
[Result "0-1"]
[ECO "E62"]
[WhiteElo "2011"]
[BlackElo "1970"]
[Annotator "NA RC"]
[PlyCount "64"]
[EventDate "2024.07.01"]
[EventType "team-tourn"]
[EventCountry "POL"]
[SourceTitle "playchess.com"]
[Source "ChessBase"]
[SourceQuality "1"]
[TimeControl "40/5400+30:1800+30"]

1. c4 {[%emt 0:00:03]} Nf6 {[%emt 0:00:04]} 2. g3 {[%emt 0:00:22]} g6 {[%emt 0:00:07]} 3. Bg2 {[%emt 0:00:09]} Bg7 {[%emt 0:00:02]} 4. Nf3 {[%emt 0:01:10]} O-O {[%emt 0:00:29]} 5. O-O {[%emt 0:00:13]} d6 {[%emt 0:01:03]} 6. d4 {[%emt 0:00:39]} Nc6 {[%emt 0:00:45]} 7. Nc3 {[%emt 0:05:31]} e5 {[%emt 0:04:55]} 8. d5 {[%emt 0:08:14]} Ne7 {[%emt 0:15:12]} 9. Ne1 {[%emt 0:03:08]} Nd7 {[%emt 0:13:39]} 10. Nd3 {[%emt 0:04:42]} f5 {[%emt 0:07:01]} 11. e4 {[%emt 0:06:04]} Nc5 {[%emt 0:04:45]} 12. Nxc5 {[%emt 0:02:26]} dxc5 {[%emt 0:00:03]} 13. Be3 {[%emt 0:02:13]} b6 {[%emt 0:06:28]} 14. d6 {[%emt 0:09:27]} cxd6 {[%emt 0:00:42]} 15. Bg5 {[%emt 0:00:39]} Bb7 {[%emt 0:05:16]} 16. Nd5 {[%emt 0:06:05]} Bxd5 {[%emt 0:01:41]} 17. Bxe7 {[%emt 0:00:13]} Qxe7 {[%emt 0:00:21]} 18. Qxd5+ {[%emt 0:00:08]} Kh8 {[%emt 0:01:15]} 19. exf5 {[%emt 0:01:29]} gxf5 {[%emt 0:00:39]} 20. Qxa8 {[%emt 0:02:52]} Rxa8 {[%emt 0:00:17]} 21. Bxa8 {[%emt 0:00:11]} e4 {[%emt 0:03:31]} 22. Rab1 {[%emt 0:01:08]} Bd4 {[%emt 0:04:40]} 23. Rfe1 {[%emt 0:03:51]} Qg5 {[%emt 0:02:05]} 24. Re2 {[%emt 0:02:51]} h5 {[%emt 0:02:09]} 25. Rbe1 {[%emt 0:02:36]} h4 {[%emt 0:01:05]} 26. Kg2 {[%emt 0:03:58]} Qg4 {[%emt 0:02:39]} 27. Bxe4 {[%emt 0:07:14]} h3+ {[%emt 0:01:57]} 28. Kf1 {[%emt 0:01:20]} fxe4 {[%emt 0:00:45]} 29. Rxe4 {[%emt 0:00:09]} Qf3 {[%emt 0:05:18]} 30. Re8+ {[%emt 0:00:30]} Kh7 {[%emt 0:03:33]} 31. R1e7+ {[%emt 0:00:22]} Kh6 {[%emt 0:00:44]} 32. Re6+ {[%emt 0:02:55]} Kh5 {[%emt 0:01:53]} 0-1